bitfinex/quotes_SOLUSD_20241021
["timestamp","ask_amount","ask_price","bid_price","bid_amount"]
[1729552569884,5.9887,166.98,166.92,11.02282544]
[1729552571286,5.9894,166.97,166.9,26.85452544]
[1729552571695,5.9894,166.97,166.88,6.4415]
[1729552571696,20.0,166.98,166.88,11.02282544]
[1729552571865,5.9901,166.95,166.88,11.02282544]
[1729552572364,5.9901,166.95,166.86,32.6471507]
[1729552572794,5.9893,166.97,166.86,32.6471507]
[1729552572995,6.4156,166.99,166.89,23.776884]
[1729552574086,5.9883,167.0,166.9,17.2495507]
[1729552574294,5.9884,166.99,166.9,17.2495507]
[1729552574481,5.9884,166.99,166.89,23.776884]
[1729552575699,5.9887,166.98,166.89,23.776884]
[1729552588812,5.9883,167.0,166.9,17.2495507]
[1729552589185,5.9883,167.0,166.9,23.6922507]
[1729552589511,5.9883,167.0,166.91,15.3556]
[1729552591507,5.9873,167.02,166.92,41.0264347]
[1729552592308,5.9873,167.02,166.96,11.03011544]
[1729552592510,5.9872,167.03,166.96,11.03011544]
[1729552592807,5.9869,167.03,166.96,11.03011544]
[1729552593003,12.3555,167.04,166.96,11.03011544]
[1729552593215,5.9866,167.04,166.98,11.03011544]
[1729552594011,22.0843,167.05,166.98,11.03011544]
[1729552595196,16.098,167.05,166.98,11.03011544]
[1729552595403,5.9859,167.06,166.98,11.03011544]
[1729552596115,5.9859,167.06,167.0,11.03011544]
[1729552599721,6.0952,167.08,166.97,15.075]
[1729552599896,24.42145343,167.07,166.97,26.10511544]
[1729552600231,5.9869,167.03,166.97,26.10511544]
[1729552603617,20.0,167.05,166.94,16.3013]
[1729552603827,5.9889,166.98,166.88,16.3013]
[1729552604001,5.9889,166.98,166.9,11.03011544]
[1729552615421,5.9883,166.99,166.92,11.03011544]
[1729552620746,20.0,167.01,166.92,11.03011544]
[1729552620911,5.9887,166.98,166.92,11.03011544]
[1729552622418,5.9887,166.98,166.89,23.776884]
[1729552622626,5.9887,166.98,166.9,11.03011544]
[1729552623335,5.9892,166.97,166.89,23.776884]
[1729552623520,14.97,167.0,166.88,16.3013]
[1729552623833,5.9899,166.95,166.88,27.33141544]
[1729552624005,22.8127,166.98,166.88,16.3013]
[1729552624209,5.9914,166.91,166.83,15.7563]
[1729552624457,5.9914,166.91,166.84,11.03011544]
[1729552625409,5.9917,166.9,166.83,26.78641544]
[1729552625738,5.9933,166.86,166.8,11.03011544]
[1729552626809,5.9927,166.87,166.8,11.03011544]
[1729552627010,5.9927,166.87,166.75,4.64440896]
[1729552627309,5.9935,166.85,166.78,11.03011544]
[1729552627514,5.9935,166.85,166.74,22.30927726]
[1729552627729,5.9935,166.85,166.78,11.03011544]
[1729552628037,5.9936,166.85,166.74,22.20927726]
[1729552628237,5.9936,166.85,166.78,11.03011544]
[1729552628816,5.9931,166.86,166.8,11.03011544]
[1729552630837,5.9935,166.85,166.79,11.03011544]
[1729552633038,5.9935,166.85,166.74,22.20927726]
[1729552633039,5.9943,166.83,166.74,22.20927726]
[1729552633219,5.9943,166.83,166.76,11.03011544]
[1729552638433,5.9943,166.83,166.75,23.776884]
[1729552638640,5.9943,166.83,166.76,11.03011544]
[1729552639020,5.993,166.86,166.78,11.03011544]
[1729552639326,5.9935,166.85,166.8,11.03011544]
[1729552639715,20.0,166.88,166.75,23.776884]
[1729552639930,20.9743,166.87,166.75,23.776884]
[1729552640120,14.9817,166.87,166.75,23.776884]
[1729552640338,39.25146259,166.9,166.74,16.0102968]
[1729552640526,5.9949,166.81,166.74,27.04041224]
[1729552641320,22.597,166.84,166.74,0.6258968]
[1729552641526,5.9959,166.78,166.74,0.6258968]
[1729552644318,43.776884,166.83,166.74,0.6258968]
[1729552644524,5.997,166.75,166.74,0.6258968]
[1729552647651,5.9963,166.77,166.74,0.6258968]
[1729552647850,20.0,166.8,166.74,0.6258968]
[1729552647851,5.997,166.75,166.74,0.6258968]
[1729552648349,25.997,166.75,166.74,0.6258968]
[1729552648853,5.997,166.75,166.74,0.6258968]
[1729552649245,20.0,166.78,166.74,0.6258968]
[1729552649456,5.9962,166.77,166.74,0.6258968]
[1729552649753,5.997,166.75,166.74,0.6258968]
[1729552650340,20.0,166.81,166.74,0.6258968]
[1729552650539,5.9959,166.78,166.74,0.6258968]
[1729552651953,20.0,166.81,166.74,0.6258968]
[1729552652251,5.9952,166.81,166.74,0.6258968]
[1729552652554,6.507,166.82,166.74,11.65601224]
[1729552652744,22.9358,166.86,166.74,11.65601224]
[1729552653056,5.9949,166.81,166.74,11.65601224]
[1729552654050,5.9958,166.79,166.74,0.6258968]
[1729552654260,61.886884,166.85,166.74,0.6258968]
[1729552654558,5.997,166.75,166.74,0.6258968]
[1729552654742,22.9358,166.78,166.74,0.6258968]
[1729552655746,20.0,166.83,166.74,0.6258968]
[1729552656049,5.9951,166.81,166.74,0.6258968]
[1729552656455,5.9951,166.81,166.74,11.65601224]
[1729552657348,5.9945,166.82,166.74,11.65601224]
[1729552659555,5.9945,166.82,166.74,11.15601224]
[1729552659757,5.9952,166.8,166.74,11.15601224]
[1729552660442,22.1024,166.83,166.74,11.15601224]
[1729552660645,5.995,166.81,166.74,0.6258968]
[1729552660845,5.9945,166.82,166.76,11.03011544]
[1729552661039,28.0965,166.83,166.76,11.03011544]
[1729552662053,20.0,166.86,166.76,11.03011544]
[1729552662253,20.0,166.86,166.78,11.03011544]
[1729552662469,22.1456,166.87,166.78,11.03011544]
[1729552662762,5.993,166.86,166.78,11.03011544]
[1729552663363,5.993,166.86,166.8,11.03011544]
[1729552663663,22.2453,166.91,166.82,11.03011544]
[1729552664159,5.9923,166.88,166.82,11.03011544]
[1729552664540,22.2453,166.91,166.82,11.03011544]
[1729552664739,5.9919,166.89,166.84,11.03011544]
[1729552665655,22.2453,166.91,166.84,11.03011544]
[1729552665869,5.9916,166.9,166.84,11.03011544]
[1729552666873,5.9916,166.9,166.86,11.03011544]
[1729552670377,37.1955,166.95,166.86,11.03011544]
[1729552670673,5.9898,166.95,166.88,11.03011544]
[1729552670854,22.4732,166.99,166.9,11.03011544]
[1729552671058,5.9891,166.97,166.9,11.03011544]
[1729552671262,22.4732,166.99,166.9,11.03011544]
[1729552671477,5.99,166.95,166.9,11.03011544]
[1729552674781,5.989,166.97,166.9,11.03011544]
[1729552675276,20.0,166.98,166.9,11.03011544]
[1729552675465,5.9896,166.96,166.9,11.03011544]
[1729552677877,5.9896,166.96,166.83,0.2]
[1729552678084,5.9896,166.96,166.9,11.03011544]
[1729552694089,5.91604918,166.96,166.9,11.03011544]
[1729552694679,5.9891,166.97,166.9,11.03011544]
[1729552695073,1.04250416,166.98,166.92,11.03011544]
[1729552695288,5.9884,166.99,166.94,11.03011544]
[1729552695585,5.988,167.0,166.96,11.03011544]
[1729552696886,21.3786,167.04,166.96,11.03011544]
[1729552697088,5.9873,167.02,166.96,11.03011544]
[1729552697393,5.9873,167.02,166.98,11.03011544]
[1729552703597,20.0,167.07,166.98,11.03011544]
[1729552703800,5.9865,167.05,166.98,11.03011544]
[1729552704599,20.0,167.07,166.98,11.03011544]
[1729552704795,20.0,167.07,167.0,11.03011544]
[1729552704796,5.9855,167.07,167.0,11.03011544]
[1729552705005,5.9855,167.07,167.02,11.03011544]
[1729552705298,36.6777,167.13,167.02,11.03011544]
[1729552705498,5.9851,167.09,167.02,11.03011544]
[1729552705679,36.6777,167.13,167.02,11.03011544]
[1729552705680,5.9851,167.08,167.02,11.03011544]
[1729552705996,36.6777,167.13,167.04,11.03011544]
[1729552706197,21.7187,167.13,167.04,11.03011544]
[1729552706406,5.9853,167.08,167.0,23.776884]
[1729552706712,5.986,167.06,166.99,33.52331544]
[1729552707013,5.984,167.11,166.99,33.52331544]
[1729552707203,5.9854,167.08,166.99,33.52331544]
[1729552707401,5.9854,167.08,167.01,11.03011544]
[1729552707599,5.9856,167.07,167.01,11.03011544]
[1729552709614,20.0,167.1,166.99,33.52331544]
[1729552709787,5.9858,167.07,166.99,33.52331544]
[1729552715204,5.9859,167.06,166.99,33.52331544]
[1729552719114,20.0,167.1,166.99,15.9362]
[1729552719402,20.0,167.1,166.95,6.1443]
[1729552719403,5.9868,167.04,166.96,23.776884]
[1729552722494,14.9619,167.09,166.97,11.03011544]
[1729552722808,5.9866,167.04,166.96,23.776884]
[1729552723312,20.0,167.03,166.91,16.3388]
[1729552723607,5.989,166.98,166.91,16.3388]
[1729552726612,5.9898,166.95,166.88,11.03011544]
[1729552726789,5.9898,166.95,166.87,15.5768]
[1729552729207,5.9898,166.95,166.88,11.03011544]
[1729552729996,7.0309862,166.99,166.9,11.03011544]
[1729552730205,5.9884,166.99,166.9,11.03011544]
[1729552730392,5.9884,166.99,166.92,11.03011544]
[1729552730708,5.988,167.0,166.92,11.03011544]
[1729552731209,5.9873,167.02,166.94,27.34331544]
[1729552731793,5.9869,167.03,166.94,27.34331544]
[1729552731993,5.9877,167.01,166.94,27.34331544]
[1729552734805,15.0619,167.04,166.94,27.34331544]
[1729552735114,5.9873,167.02,166.94,27.34331544]
[1729552736393,5.9873,167.02,166.96,11.03011544]
[1729552746923,6.189,167.05,166.96,11.03011544]
[1729552747221,5.987,167.03,166.96,11.03011544]
[1729552749024,5.987,167.03,166.98,11.03011544]
[1729552749332,5.9866,167.04,166.98,11.03011544]
[1729552749501,5.9866,167.04,167.0,11.03011544]
[1729552750423,5.9863,167.05,167.0,11.03011544]
[1729552750722,5.9867,167.04,166.98,11.03011544]
[1729552751716,5.9873,167.02,166.95,6.3319]
[1729552752017,5.9876,167.02,166.95,34.80699944]
[1729552756028,5.9876,167.02,166.95,23.776884]
[1729552756324,5.9876,167.02,166.96,11.03011544]
[1729552760924,5.9881,167.0,166.94,27.34331544]
[1729552761117,21.04217608,167.07,166.94,16.3132]
[1729552761118,5.9886,166.99,166.94,16.3132]
[1729552761320,23.776884,167.05,166.91,6.3319]
[1729552761507,23.776884,167.05,166.9,15.4293]
[1729552761508,5.9891,166.97,166.9,15.4293]
[1729552762714,5.9891,166.97,166.91,23.776884]
[1729552763335,5.9891,166.97,166.91,34.80699944]
[1729552763528,5.9887,166.98,166.91,34.80699944]
[1729552765123,5.9894,166.97,166.9,15.4293]
[1729552765519,5.9887,166.98,166.91,11.03011544]
[1729552768041,14.9691,167.01,166.9,15.4293]
[1729552768235,5.9891,166.97,166.9,15.4293]
[1729552768421,5.9891,166.97,166.9,26.45941544]
[1729552771444,35.2984,167.04,166.92,11.03011544]
[1729552771756,5.988,167.0,166.94,11.03011544]
[1729552772937,5.9872,167.03,166.95,23.776884]
[1729552773122,5.9869,167.03,166.95,23.776884]
[1729552773737,5.9874,167.02,166.95,23.776884]
[1729552776158,5.9874,167.02,166.96,11.03011544]
[1729552776327,15.2984,167.04,166.96,11.03011544]
[1729552776647,5.9873,167.02,166.96,11.03011544]
[1729552777745,6.1232,167.06,166.96,11.03011544]
[1729552777937,5.9869,167.03,166.96,11.03011544]
[1729552778445,6.1232,167.06,166.98,11.03011544]
[1729552778749,6.1232,167.06,166.97,23.776884]
[1729552778750,4.43736159,167.05,167.0,11.03011544]
[1729552779048,5.985,167.09,167.02,11.03011544]
[1729552779240,10.42360972,167.08,167.02,11.03011544]
[1729552779560,5.9855,167.07,166.97,6.6457]
[1729552779735,5.9858,167.06,167.0,11.03011544]
[1729552780136,5.9853,167.08,167.02,11.03011544]
[1729552780434,5.9847,167.09,167.0,11.03011544]
[1729552780637,5.9859,167.06,167.0,11.03011544]
[1729552781754,5.9868,167.04,166.97,6.6457]
[1729552781933,5.9867,167.04,166.97,23.776884]
[1729552782138,20.0,167.07,166.96,15.0808]
[1729552782342,4.43714628,167.06,166.96,15.0808]
[1729552782658,5.9873,167.02,166.96,15.0808]
[1729552783657,5.9873,167.02,166.96,26.11091544]
[1729552789761,6.4278,167.05,166.94,23.776884]
[1729552789968,5.988,167.01,166.94,11.03011544]
[1729552792672,5.9859,167.06,166.97,23.776884]
[1729552792844,5.9859,167.06,166.98,11.03011544]
[1729552795164,5.9857,167.07,166.99,23.776884]
[1729552795354,5.9859,167.06,166.99,23.776884]
[1729552800468,5.9865,167.05,166.98,11.03011544]
[1729552800769,5.9866,167.04,166.98,11.03011544]
[1729552802976,5.9858,167.07,167.0,11.03011544]
[1729552803365,5.9858,167.07,166.99,23.776884]
[1729552803764,5.9858,167.07,167.0,11.03011544]
[1729552804664,5.9859,167.06,167.0,11.03011544]
[1729552807595,5.9859,167.06,166.99,23.776884]
[1729552820197,22.2813,167.09,166.98,16.4692]
[1729552820372,5.9858,167.06,166.98,16.4692]
[1729552820577,5.9869,167.03,166.95,11.03011544]
[1729552821995,5.9869,167.03,166.96,23.776884]
[1729552830697,5.9866,167.04,166.96,23.776884]
[1729552834583,22.2813,167.09,166.99,11.03011544]
[1729552834797,5.9862,167.06,166.99,11.03011544]
[1729552834983,22.2813,167.09,166.99,11.03011544]
[1729552835183,4.43834655,167.08,166.99,11.03011544]
[1729552835406,5.9862,167.05,166.99,11.03011544]
[1729552837986,37.8328,167.11,166.99,26.71831544]
[1729552838202,5.985,167.09,167.03,11.03011544]
[1729552838799,5.9844,167.1,167.03,11.03011544]
[1729552840004,5.9841,167.11,167.05,11.03011544]
[1729552841074,5.9837,167.13,167.07,11.03011544]
[1729552842199,5.9822,167.17,167.09,11.03011544]
[1729552842382,4.43965913,167.16,167.11,11.03011544]
[1729552842588,5.9815,167.18,167.11,11.03011544]
[1729552842782,4.44023497,167.17,167.11,11.03011544]
[1729552843090,5.9812,167.19,167.13,11.03011544]
[1729552843290,4.4404813,167.18,167.13,11.03011544]
[1729552843486,5.9812,167.19,167.13,11.03011544]
[1729552843690,4.43660104,167.18,167.13,11.03011544]
[1729552843877,5.9812,167.19,167.13,11.03011544]
[1729552844283,4.43637368,167.18,167.13,11.03011544]
[1729552844490,5.9812,167.19,167.13,11.03011544]
[1729552846785,5.9809,167.2,167.15,11.03011544]
[1729552853287,14.9486,167.24,167.15,11.03011544]
[1729552853490,5.9812,167.19,167.15,11.03011544]
[1729552856719,5.9808,167.21,167.15,11.03011544]
[1729552857095,5.9808,167.2,167.15,11.03011544]
[1729552863020,22.4755,167.25,167.19,11.03011544]
[1729552863204,5.9793,167.25,167.19,11.03011544]
[1729552863519,14.945,167.28,167.19,11.03011544]
[1729552863708,5.9794,167.25,167.19,11.03011544]
[1729552864218,5.9788,167.26,167.21,11.03011544]
[1729552865818,22.0613,167.29,167.21,11.03011544]
[1729552866120,5.9789,167.26,167.18,23.776884]
[1729552866309,5.9796,167.24,167.17,15.5879]
[1729552866498,5.9796,167.24,167.17,26.61801544]
[1729552871523,20.0,167.28,167.19,11.03011544]
[1729552872624,5.9791,167.25,167.18,23.776884]
[1729552872816,5.9796,167.24,167.17,26.61801544]
[1729552873011,5.9803,167.22,167.14,23.776884]
[1729552873207,5.9803,167.22,167.13,33.37481544]
[1729552873414,20.0,167.28,167.13,33.37481544]
[1729552873731,20.0,167.22,167.13,16.3151]
[1729552874031,5.9813,167.19,167.13,16.3151]
[1729552875130,5.9808,167.21,167.13,16.3151]
[1729552875625,5.9809,167.2,167.13,16.3151]
[1729552875926,20.0,167.25,167.16,11.03011544]
[1729552876128,5.9794,167.24,167.16,11.03011544]
[1729552876435,5.9794,167.24,167.17,23.776884]
[1729552877520,5.9794,167.24,167.18,11.03011544]
[1729552877714,14.9439,167.3,167.18,11.03011544]
[1729552877924,5.9785,167.27,167.18,11.03011544]
[1729552878116,5.9785,167.27,167.2,11.03011544]
[1729552881833,5.9787,167.26,167.2,11.03011544]
[1729552883729,20.0,167.28,167.18,11.03011544]
[1729552884116,5.9793,167.25,167.18,11.03011544]
[1729552886831,5.9793,167.25,167.2,11.03011544]
[1729552894245,5.978,167.28,167.2,11.03011544]
[1729552894414,4.44343185,167.27,167.22,11.03011544]
[1729552894614,5.9783,167.27,167.22,11.03011544]
[1729552896820,22.2084,167.31,167.19,16.2412]
[1729552897026,5.9797,167.24,167.16,34.80699944]
[1729552897928,5.9801,167.23,167.15,26.96981544]
[1729552899217,5.9801,167.23,167.16,23.776884]
[1729552901043,20.0,167.26,167.15,15.9397]
[1729552901217,20.0,167.23,167.15,15.9397]
[1729552901421,5.9808,167.21,167.15,15.9397]
[1729552901755,42.0502,167.23,167.11,28.61712287]
[1729552901922,4.4444381,167.22,167.11,22.4396]
[1729552902115,4.4444381,167.21,167.12,11.03011544]
[1729552903042,5.9804,167.22,167.13,23.776884]
[1729552906043,42.0502,167.23,167.11,22.4396]
[1729552906344,5.9808,167.21,167.12,11.03011544]
[1729552906725,5.9808,167.2,167.12,11.03011544]
[1729552907325,5.9808,167.2,167.13,23.776884]
[1729552921871,5.9812,167.19,167.12,23.776884]
[1729552922659,42.0502,167.23,167.12,23.776884]
[1729552922968,5.9809,167.2,167.13,11.03011544]
[1729552923761,42.0502,167.23,167.13,11.03011544]
[1729552923941,4.45224118,167.22,167.13,11.03011544]
[1729552924252,5.9807,167.21,167.13,11.03011544]
[1729552925941,42.0502,167.23,167.14,23.776884]
[1729552926256,5.9794,167.24,167.16,23.776884]
[1729552926465,5.9794,167.24,167.17,16.3388]
[1729552926956,5.9794,167.24,167.17,27.36891544]
[1729552927255,5.979,167.26,167.18,23.776884]
[1729552927437,5.979,167.26,167.19,11.03011544]
[1729552932182,23.1757,167.31,167.19,11.03011544]
[1729552932351,5.9787,167.26,167.19,11.03011544]
[1729552936363,5.9804,167.22,167.15,11.03011544]
[1729552936546,21.2173,167.25,167.15,11.03011544]
[1729552936740,5.9804,167.22,167.15,11.03011544]
[1729552942455,5.9805,167.21,167.14,23.776884]
[1729552942662,5.9802,167.22,167.15,11.03011544]
[1729552964588,5.9812,167.19,167.13,15.0959]
[1729552964885,5.9812,167.19,167.11,11.03011544]
[1729552965485,20.0,167.23,167.13,11.03011544]
[1729552966385,5.9807,167.21,167.13,11.03011544]
[1729552968708,5.9809,167.2,167.13,11.03011544]
[1729552983423,5.98,167.23,167.17,11.03011544]
[1729552984515,21.2173,167.25,167.17,11.03011544]
[1729552984817,5.9794,167.24,167.17,11.03011544]
[1729552987498,5.9794,167.24,167.14,46.276084]
[1729552987721,5.9794,167.24,167.17,11.03011544]
[1729552988324,5.9794,167.24,167.14,46.276084]
[1729552988823,5.9797,167.23,167.17,11.03011544]
[1729552990714,5.9802,167.22,167.14,40.267184]
[1729552990905,5.9802,167.22,167.16,23.776884]
[1729552991311,5.9809,167.2,167.15,11.03011544]
[1729552991513,5.9816,167.18,167.1,21.9283]
[1729552991723,34.9492,167.24,167.1,26.40371544]
[1729552991724,20.0,167.22,167.1,26.40371544]
[1729552991920,5.9819,167.17,167.1,26.40371544]
[1729552992819,5.9816,167.18,167.1,26.40371544]
[1729552993028,5.9816,167.18,167.11,23.776884]
[1729552997026,5.9819,167.17,167.11,23.776884]
[1729552997205,5.9827,167.15,167.07,34.80699944]
[1729553004023,49.9078,167.18,167.03,4.68622616]
[1729553004202,5.9853,167.08,167.01,21.5928]
[1729553004406,20.0,167.14,167.01,21.5928]
[1729553004706,5.9847,167.1,167.02,11.03011544]
[1729553004922,20.0,167.14,167.01,21.5928]
[1729553005225,5.9847,167.1,167.02,11.03011544]
[1729553005714,5.9847,167.1,167.03,23.776884]
[1729553006506,5.9833,167.13,167.06,11.03011544]
[1729553006711,5.9833,167.13,167.03,23.776884]
[1729553006712,5.9829,167.15,167.08,11.03011544]
[1729553007723,5.9826,167.15,167.08,11.03011544]
[1729553013318,6.1733,167.18,167.07,39.527084]
[1729553013531,6.1733,167.18,167.12,11.03011544]
[1729553013720,5.9823,167.16,167.12,11.03011544]
[1729553013930,5.9823,167.16,167.1,11.03011544]
[1729553021838,5.982,167.17,167.12,11.03011544]
[1729553023252,20.0,167.19,167.1,11.03011544]
[1729553023421,5.9833,167.14,167.08,11.03011544]
[1729553023619,6.3737,167.19,167.08,11.03011544]
[1729553023944,5.9836,167.13,167.08,11.03011544]
[1729553050764,5.9836,167.13,167.07,15.7502]
[1729553075573,4.47048661,167.12,167.07,15.7502]
[1729553075781,5.9836,167.13,167.07,15.7502]
[1729553075968,4.47054598,167.12,167.07,15.7502]
[1729553076166,5.9836,167.13,167.07,15.7502]
[1729553076475,4.47041432,167.12,167.07,15.7502]
[1729553076768,5.9836,167.13,167.07,15.7502]
[1729553076969,4.47052103,167.12,167.07,15.7502]
[1729553077175,5.985,167.09,167.02,16.1183]
[1729553077354,14.9584,167.13,167.01,11.03011544]
[1729553077355,20.0,167.13,167.01,11.03011544]
[1729553077557,5.986,167.06,166.99,17.40641544]
[1729553078853,5.986,167.06,167.0,23.776884]
[1729553079253,5.986,167.06,166.98,16.1183]
[1729553079254,21.5319,167.09,166.98,16.1183]
[1729553079451,5.9877,167.01,166.94,22.3598]
[1729553079651,5.9877,167.01,166.94,33.38991544]
[1729553079878,5.9876,167.02,166.94,33.38991544]
[1729553080878,5.9876,167.02,166.95,23.776884]
[1729553086988,5.988,167.0,166.95,23.776884]
[1729553087168,5.988,167.0,166.94,22.3598]
[1729553087169,5.9886,166.99,166.94,16.2294]
[1729553087377,21.3483,167.03,166.94,16.2294]
[1729553087570,5.9886,166.99,166.93,23.776884]
[1729553090677,21.3483,167.03,166.93,23.776884]
[1729553090981,5.988,167.0,166.93,23.776884]
[1729553091381,6.381,167.03,166.94,11.03011544]
[1729553091589,5.9868,167.04,166.98,11.03011544]
[1729553092687,5.9869,167.03,166.98,11.03011544]
[1729553093274,5.9873,167.02,166.96,26.84371544]
[1729553093885,5.9874,167.02,166.96,11.03011544]
[1729553094268,5.9874,167.02,166.93,23.776884]
[1729553094574,20.0,167.04,166.92,15.8136]
[1729553094769,5.988,167.0,166.93,11.03011544]
[1729553095579,5.9877,167.01,166.95,11.03011544]
[1729553096387,20.0,167.04,166.95,11.03011544]
[1729553096570,5.988,167.0,166.95,11.03011544]
[1729553100986,5.988,167.0,166.93,23.776884]
[1729553101194,5.988,167.0,166.94,11.03011544]
[1729553103896,5.9869,167.03,166.96,11.03011544]
[1729553104074,20.0,167.06,166.96,11.03011544]
[1729553104389,5.9865,167.04,166.97,23.776884]
[1729553105578,20.0,167.06,166.97,23.776884]
[1729553105883,5.9868,167.04,166.97,23.776884]
[1729553106785,5.9878,167.01,166.93,23.776884]
[1729553107106,5.988,167.0,166.93,11.03011544]
[1729553107483,5.9877,167.01,166.93,11.03011544]
[1729553108373,5.9877,167.01,166.94,23.776884]
[1729553121994,5.9877,167.01,166.93,11.03011544]
[1729553121995,5.9877,167.01,166.95,11.03011544]
[1729553123783,20.0,167.04,166.93,23.776884]
[1729553123995,5.9881,167.0,166.93,34.80699944]
[1729553125899,6.4617,167.07,166.97,11.03011544]
[1729553126199,5.9865,167.05,166.97,11.03011544]
[1729553126402,5.9865,167.05,166.99,11.03011544]
[1729553128506,5.9865,167.05,166.93,23.776884]
[1729553128715,5.9865,167.05,166.98,11.03011544]
[1729553131706,5.9866,167.04,166.98,11.03011544]
[1729553132702,5.9866,167.04,166.93,23.776884]
[1729553132887,5.9866,167.04,166.98,11.03011544]
[1729553136005,6.4617,167.07,166.98,11.03011544]
[1729553136199,5.9858,167.06,167.0,11.03011544]
[1729553136394,6.4617,167.07,167.0,11.03011544]
[1729553136594,20.0,167.1,167.02,11.03011544]
[1729553136903,5.9848,167.09,167.02,11.03011544]
[1729553137806,5.9847,167.09,167.01,11.03011544]
[1729553139211,20.0,167.1,167.01,11.03011544]
[1729553139407,5.9851,167.08,167.01,11.03011544]
[1729553140083,5.9856,167.07,167.01,11.03011544]
[1729553140414,5.987,167.03,166.97,15.2362]
[1729553142620,5.9879,167.01,166.97,15.2362]
[1729553142817,5.9879,167.01,166.94,11.03011544]
[1729553147710,5.9879,167.01,166.94,23.776884]
[1729553150014,20.0,167.0,166.88,6.25111395]
[1729553150215,5.9898,166.95,166.87,15.2362]
[1729553150430,22.9177,166.99,166.87,15.2362]
[1729553150606,5.9906,166.93,166.86,26.19361544]
[1729553150916,5.9902,166.94,166.86,26.19361544]
[1729553152323,5.9902,166.94,166.87,23.776884]
[1729553152621,5.9907,166.93,166.86,15.1635]
[1729553152818,5.9907,166.93,166.86,26.19361544]
[1729553153021,5.9907,166.93,166.86,15.1635]
[1729553153212,5.9907,166.93,166.86,26.19361544]
[1729553153926,5.9907,166.93,166.87,23.776884]
[1729553155925,20.0,166.98,166.86,15.1635]
[1729553156130,5.9905,166.93,166.86,26.19361544]
[1729553157003,22.9177,166.99,166.88,11.03011544]
[1729553157234,5.9899,166.95,166.88,11.03011544]
[1729553159511,20.0,166.98,166.9,11.03011544]
[1729553159812,5.9897,166.96,166.9,11.03011544]
[1729553160236,20.0,166.98,166.86,15.1635]
[1729553160530,5.9911,166.92,166.86,15.1635]
[1729553166327,5.9911,166.92,166.86,26.19361544]
[1729553171441,20.0,166.96,166.86,26.19361544]
[1729553171740,20.0,166.98,166.88,11.03011544]
[1729553172526,20.0,166.96,166.88,11.03011544]
[1729553172727,20.0,166.98,166.88,11.03011544]
[1729553172933,20.0,166.91,166.81,6.25277475]
[1729553173139,5.9933,166.86,166.78,26.36951544]
[1729553174230,5.9933,166.86,166.79,23.776884]
[1729553174625,5.9935,166.85,166.78,26.36951544]
[1729553174824,5.9937,166.84,166.78,15.3394]
[1729553176842,18.0,166.89,166.78,15.3394]
[1729553177043,5.9943,166.83,166.78,15.3394]
[1729553177340,5.9951,166.81,166.74,0.6258968]
[1729553178538,5.9952,166.8,166.74,0.6258968]
[1729553179229,5.9945,166.82,166.75,11.03011544]
[1729553179644,5.9945,166.82,166.74,11.65601224]
[1729553181031,5.9944,166.82,166.74,11.65601224]
[1729553181236,20.0,166.84,166.78,11.03011544]
[1729553181424,25.9938,166.84,166.76,11.03011544]
[1729553182451,5.9942,166.83,166.76,11.03011544]
[1729553188746,5.9945,166.82,166.76,11.03011544]
[1729553189249,20.0,166.87,166.76,11.03011544]
[1729553189452,5.9941,166.83,166.76,11.03011544]
[1729553190351,20.0,166.87,166.76,11.03011544]
[1729553190525,20.0,166.85,166.76,11.03011544]
[1729553190726,5.9948,166.81,166.74,0.6258968]
[1729553190943,20.0,166.85,166.75,11.03011544]
[1729553191254,5.9951,166.81,166.75,11.03011544]
[1729553192752,5.9952,166.8,166.75,11.03011544]
[1729553196558,5.9952,166.8,166.74,0.6258968]
[1729553196857,5.9952,166.8,166.75,11.03011544]
[1729553201645,5.9946,166.82,166.75,11.03011544]
[1729553202559,20.0,166.85,166.75,11.03011544]